Workbook

Sheet HeroModelConfig
A1: ID | B1: nickName | C1: name | E1: headicon | F1: model | G1: isUseGpu | H1: heroType | P1: attack | Q1: hp | R1: def | S1: shield | W1: speed_atk | X1: Linggen | Y1: skillID | Z1: skillActiveLv | AA1: fa_bao_id | AB1: fabaoActiveLv | AC1: heroStory
A2: int | B2: int | C2: int | E2: string | F2: string | G2: bool | H2: int | J2: 英雄 | K2: 小怪 | L2: 精英 | M2: 首领 | P2: int | Q2: int | R2: int | S2: int | W2: float | X2: int[] | Y2: int[] | Z2: int[] | AA2: int[] | AB2: int[] | AC2: int
J3: 1 | K3: 0.81 | L3: 1.44 | M3: 2.25
A4: modelID | B4: 称号 | C4: 名字 | D4: 名字预览 | E4: 头像素材名 | F4: 模型名称 | H4: 1. 英雄 2. 小怪 3. 精英 4. BOSS | J4: 攻击力 倍率 | K4: 护盾/生命比例 不填=30% | L4: 防御力 倍率 | M4: 护盾 倍率 | N4: 生命值 倍率 | P4: 攻击力 | Q4: 生命值 | R4: 防御力 | S4: 护盾 | T4: 总能力 | U4: 攻击能力 | V4: 生存能力 | W4: 攻击速度 X秒/圈 | X4: 灵根初值 金-水-木-火-土 | Y4: 功法序列 主动≤4 被动≤3 | Z4: 功法最低出现等级 | AA4: 角色自带的法宝（最多4个） | AB4: 法宝最低出现等级 | AC4: 英雄故事文本 | AE4: 功法1 | AF4: 功法2 | AG4: 功法3 | AH4: 功法4 | AI4: 功法5 | AJ4: 功法6 | AK4: 功法7 | AL4: 功法8 | AM4: 功法9 | AN4: 功法10 | AP4: 功法1 出现等级 | AQ4: 功法2 出现等级 | AR4: 功法3 出现等级 | AS4: 功法4 出现等级 | AT4: 功法5 出现等级 | AU4: 功法6 出现等级 | AV4: 功法7 出现等级 | AW4: 功法8 出现等级 | AX4: 功法9 出现等级 | AY4: 功法10 出现等级 | BA4: 法宝1 | BB4: 法宝2 | BC4: 法宝3 | BD4: 法宝4 | BF4: 法宝1 出现等级 | BG4: 法宝2 出现等级 | BH4: 法宝3 出现等级 | BI4: 法宝4 出现等级 | BK4: 灵根 金 | BL4: 灵根 水 | BM4: 灵根 木 | BN4: 灵根 火 | BO4: 灵根 土
A5: 101 | B5: -1 | C5: 1 | D5: 主角 | E5: =CONCATENATE("icon_tx",A5) -> icon_tx101 | F5: Nanzhu | G5: 0 | H5: 1 | J5: 1 | L5: 1 | M5: =((CHOOSE(H5,J$3,K$3,L$3,M$3)^0.5*100/(U5*L5)*1.3)-N5)/0.3 -> 1 | N5: =(100/(U5*L5)*1.3/(1+IF(K5="",0.3,K5)))*CHOOSE(H5,J$3,K$3,L$3,M$3)^0.5 -> 1 | P5: =ROUND(J5*[1]升级!$C$3*CHOOSE(H5,J$3,K$3,L$3,M$3)^0.5,0) -> 200 | Q5: =ROUND(N5*[1]升级!$B$3/[1]升级!$D$1*CHOOSE(H5,J$3,K$3,L$3,M$3)^0.5,0) -> 201 | R5: =ROUND(L5*[1]升级!$D$3,0) -> 100 | S5: =ROUND(CHOOSE(H5,J$3,K$3,L$3,M$3)^0.5*M5*[1]升级!$B$3/[1]升级!$D$1,0) -> 201 | T5: =(U5*V5)/100 -> 100 | U5: =J5*100*CHOOSE(H5,J$3,K$3,L$3,M$3)^0.5 -> 100 | V5: =(N5+M5*0.3)/1.3*L5*100*CHOOSE(H5,J$3,K$3,L$3,M$3)^0.5 -> 100 | W5: 0 | X5: =_xlfn.TEXTJOIN(";",1,BK5:BO5) -> 100;100;100;100;100 | Y5: =_xlfn.TEXTJOIN(";",1,AE5:AN5) -> -1;-1;-1;-1;-1;-1;-1;-1;-1;-1 | Z5: =_xlfn.TEXTJOIN(";",1,AP5:AY5) -> -1;-1;-1;-1;-1;-1;-1;-1;-1;-1 | AA5: =_xlfn.TEXTJOIN(";",1,BA5:BD5) -> -1;-1;-1;-1 | AB5: =_xlfn.TEXTJOIN(";",1,BF5:BI5) -> -1;-1;-1;-1 | AE5: -1 | AF5: -1 | AG5: -1 | AH5: -1 | AI5: -1 | AJ5: -1 | AK5: -1 | AL5: -1 | AM5: -1 | AN5: -1 | AP5: -1 | AQ5: -1 | AR5: -1 | AS5: -1 | AT5: -1 | AU5: -1 | AV5: -1 | AW5: -1 | AX5: -1 | AY5: -1 | BA5: -1 | BB5: -1 | BC5: -1 | BD5: -1 | BF5: -1 | BG5: -1 | BH5: -1 | BI5: -1 | BK5: 100 | BL5: 100 | BM5: 100 | BN5: 100 | BO5: 100
D6: 小怪
A7: 1001 | B7: -1 | C7: 2 | D7: 怪1 | E7: =CONCATENATE("icon_tx",A7) -> icon_tx1001 | F7: Guixiu01 | G7: 0 | H7: 2 | J7: 1.1 | L7: 1 | M7: =((CHOOSE(H7,J$3,K$3,L$3,M$3)^0.5*100/(U7*L7)*1.3)-N7)/0.3 -> 0.9090909091 | N7: =(100/(U7*L7)*1.3/(1+IF(K7="",0.3,K7)))*CHOOSE(H7,J$3,K$3,L$3,M$3)^0.5 -> 0.9090909091 | P7: =ROUND(J7*[1]升级!$C$3*CHOOSE(H7,J$3,K$3,L$3,M$3)^0.5,0) -> 198 | Q7: =ROUND(N7*[1]升级!$B$3/[1]升级!$D$1*CHOOSE(H7,J$3,K$3,L$3,M$3)^0.5,0) -> 165 | R7: =ROUND(L7*[1]升级!$D$3,0) -> 100 | S7: =ROUND(CHOOSE(H7,J$3,K$3,L$3,M$3)^0.5*M7*[1]升级!$B$3/[1]升级!$D$1,0) -> 165 | T7: =(U7*V7)/100 -> 81 | U7: =J7*100*CHOOSE(H7,J$3,K$3,L$3,M$3)^0.5 -> 99 | V7: =(N7+M7*0.3)/1.3*L7*100*CHOOSE(H7,J$3,K$3,L$3,M$3)^0.5 -> 81.81818182 | W7: 0 | X7: =_xlfn.TEXTJOIN(";",1,BK7:BO7) -> 100;100;100;100;100 | Y7: =_xlfn.TEXTJOIN(";",1,AE7:AN7) -> 1201;-1;1301;-1;1401;-1;-1;-1;1101;-1 | Z7: =_xlfn.TEXTJOIN(";",1,AP7:AY7) -> 1;40;30;70;60;-1;-1;-1;1;10 | AA7: =_xlfn.TEXTJOIN(";",1,BA7:BD7) -> -1;-1;-1;-1 | AB7: =_xlfn.TEXTJOIN(";",1,BF7:BI7) -> 1;20;50;80 | AE7: 1201 | AF7: -1 | AG7: 1301 | AH7: -1 | AI7: 1401 | AJ7: -1 | AK7: -1 | AL7: -1 | AM7: 1101 | AN7: -1 | AP7: 1 | AQ7: 40 | AR7: 30 | AS7: 70 | AT7: 60 | AU7: -1 | AV7: -1 | AW7: -1 | AX7: 1 | AY7: 10 | BA7: -1 | BB7: -1 | BC7: -1 | BD7: -1 | BF7: 1 | BG7: 20 | BH7: 50 | BI7: 80 | BK7: 100 | BL7: 100 | BM7: 100 | BN7: 100 | BO7: 100
A8: 1002 | B8: -1 | C8: 3 | D8: 怪2 | E8: icon_tx1002 | F8: Nanzhu | G8: 0 | H8: 2 | J8: 0.9 | L8: 1 | M8: =((CHOOSE(H8,J$3,K$3,L$3,M$3)^0.5*100/(U8*L8)*1.3)-N8)/0.3 -> 1.111111111 | N8: =(100/(U8*L8)*1.3/(1+IF(K8="",0.3,K8)))*CHOOSE(H8,J$3,K$3,L$3,M$3)^0.5 -> 1.111111111 | P8: =ROUND(J8*[1]升级!$C$3*CHOOSE(H8,J$3,K$3,L$3,M$3)^0.5,0) -> 162 | Q8: =ROUND(N8*[1]升级!$B$3/[1]升级!$D$1*CHOOSE(H8,J$3,K$3,L$3,M$3)^0.5,0) -> 201 | R8: =ROUND(L8*[1]升级!$D$3,0) -> 100 | S8: =ROUND(CHOOSE(H8,J$3,K$3,L$3,M$3)^0.5*M8*[1]升级!$B$3/[1]升级!$D$1,0) -> 201 | T8: =(U8*V8)/100 -> 81 | U8: =J8*100*CHOOSE(H8,J$3,K$3,L$3,M$3)^0.5 -> 81 | V8: =(N8+M8*0.3)/1.3*L8*100*CHOOSE(H8,J$3,K$3,L$3,M$3)^0.5 -> 100 | W8: 0 | X8: 100;100;100;100;100 | Y8: 1202;-1;1301;-1;1402;-1;-1;-1;1102;-1 | Z8: 1;40;30;70;60;-1;-1;-1;1;10 | AA8: -1;-1;-1;-1 | AB8: 1;20;50;80 | AE8: 1202 | AF8: -1 | AG8: 1301 | AH8: -1 | AI8: 1402 | AJ8: -1 | AK8: -1 | AL8: -1 | AM8: 1102 | AN8: -1 | AP8: 1 | AQ8: 40 | AR8: 30 | AS8: 70 | AT8: 60 | AU8: -1 | AV8: -1 | AW8: -1 | AX8: 1 | AY8: 10 | BA8: -1 | BB8: -1 | BC8: -1 | BD8: -1 | BF8: 1 | BG8: 20 | BH8: 50 | BI8: 80 | BK8: 100 | BL8: 100 | BM8: 100 | BN8: 100 | BO8: 100
A9: 1003 | B9: -1 | C9: 4 | D9: 怪3 | E9: icon_tx1003 | F9: Guixiu01 | G9: 0 | H9: 2 | J9: 1 | L9: 1 | M9: 1 | N9: 1 | P9: =ROUND(J9*[1]升级!$C$3*CHOOSE(H9,J$3,K$3,L$3,M$3)^0.5,0) -> 180 | Q9: =ROUND(N9*[1]升级!$B$3/[1]升级!$D$1*CHOOSE(H9,J$3,K$3,L$3,M$3)^0.5,0) -> 181 | R9: =ROUND(L9*[1]升级!$D$3,0) -> 100 | S9: =ROUND(CHOOSE(H9,J$3,K$3,L$3,M$3)^0.5*M9*[1]升级!$B$3/[1]升级!$D$1,0) -> 181 | T9: 81 | U9: 90 | V9: 90 | W9: 0 | X9: 100;100;100;100;100 | Y9: 1201;-1;1301;-1;1403;-1;-1;-1;1103;-1 | Z9: 1;40;30;70;60;-1;-1;-1;1;10 | AA9: -1;-1;-1;-1 | AB9: 1;20;50;80 | AE9: 1201 | AF9: -1 | AG9: 1301 | AH9: -1 | AI9: 1403 | AJ9: -1 | AK9: -1 | AL9: -1 | AM9: 1103 | AN9: -1 | AP9: 1 | AQ9: 40 | AR9: 30 | AS9: 70 | AT9: 60 | AU9: -1 | AV9: -1 | AW9: -1 | AX9: 1 | AY9: 10 | BA9: -1 | BB9: -1 | BC9: -1 | BD9: -1 | BF9: 1 | BG9: 20 | BH9: 50 | BI9: 80 | BK9: 100 | BL9: 100 | BM9: 100 | BN9: 100 | BO9: 100
A10: 1004 | B10: -1 | C10: 4 | D10: 怪3 | E10: icon_tx1004 | F10: Guixiu01 | G10: 0 | H10: 2 | J10: 1.2 | L10: 1 | M10: 0.8333333333 | N10: 0.8333333333 | P10: =ROUND(J10*[1]升级!$C$3*CHOOSE(H10,J$3,K$3,L$3,M$3)^0.5,0) -> 216 | Q10: =ROUND(N10*[1]升级!$B$3/[1]升级!$D$1*CHOOSE(H10,J$3,K$3,L$3,M$3)^0.5,0) -> 151 | R10: =ROUND(L10*[1]升级!$D$3,0) -> 100 | S10: =ROUND(CHOOSE(H10,J$3,K$3,L$3,M$3)^0.5*M10*[1]升级!$B$3/[1]升级!$D$1,0) -> 151 | T10: 81 | U10: 108 | V10: 75 | W10: 0 | X10: 100;100;100;100;100 | Y10: 9031;-1;9032;-1;9033;-1;-1;9033;-1;-1 | Z10: 1;40;30;70;60;-1;-1;-1;1;10 | AA10: -1;-1;-1;-1 | AB10: 1;20;50;80 | AE10: 9031 | AF10: -1 | AG10: 9032 | AH10: -1 | AI10: 9033 | AJ10: -1 | AK10: -1 | AL10: 9033 | AM10: -1 | AN10: -1 | AP10: 1 | AQ10: 40 | AR10: 30 | AS10: 70 | AT10: 60 | AU10: -1 | AV10: -1 | AW10: -1 | AX10: 1 | AY10: 10 | BA10: -1 | BB10: -1 | BC10: -1 | BD10: -1 | BF10: 1 | BG10: 20 | BH10: 50 | BI10: 80 | BK10: 100 | BL10: 100 | BM10: 100 | BN10: 100 | BO10: 100
A11: 1005 | B11: -1 | C11: 4 | D11: 木灵之子 | E11: icon_tx1005 | F11: Boss_Tree_xiao | G11: 0 | H11: 2 | J11: 0.8 | L11: 1 | M11: 1.25 | N11: 1.25 | P11: =ROUND(J11*[1]升级!$C$3*CHOOSE(H11,J$3,K$3,L$3,M$3)^0.5,0) -> 144 | Q11: =ROUND(N11*[1]升级!$B$3/[1]升级!$D$1*CHOOSE(H11,J$3,K$3,L$3,M$3)^0.5,0) -> 226 | R11: =ROUND(L11*[1]升级!$D$3,0) -> 100 | S11: =ROUND(CHOOSE(H11,J$3,K$3,L$3,M$3)^0.5*M11*[1]升级!$B$3/[1]升级!$D$1,0) -> 226 | T11: 81 | U11: 72 | V11: 112.5 | W11: 0 | X11: 100;100;100;100;100 | Y11: 9071;-1;-1;-1;9071;-1;-1;-1;9071;-1 | Z11: 1;40;30;70;60;-1;-1;-1;1;10 | AA11: -1;-1;-1;-1 | AB11: 1;20;50;80 | AE11: 9071 | AF11: -1 | AG11: -1 | AH11: -1 | AI11: 9071 | AJ11: -1 | AK11: -1 | AL11: -1 | AM11: 9071 | AN11: -1 | AP11: 1 | AQ11: 40 | AR11: 30 | AS11: 70 | AT11: 60 | AU11: -1 | AV11: -1 | AW11: -1 | AX11: 1 | AY11: 10 | BA11: -1 | BB11: -1 | BC11: -1 | BD11: -1 | BF11: 1 | BG11: 20 | BH11: 50 | BI11: 80 | BK11: 100 | BL11: 100 | BM11: 100 | BN11: 100 | BO11: 100
A12: 1006 | B12: -1 | C12: 4 | D12: 飞鹤 | E12: icon_tx1006 | F12: gw_xianhe | G12: 0 | H12: 2 | J12: 1.15 | L12: 1 | M12: 0.8695652174 | N12: 0.8695652174 | P12: =ROUND(J12*[1]升级!$C$3*CHOOSE(H12,J$3,K$3,L$3,M$3)^0.5,0) -> 207 | Q12: =ROUND(N12*[1]升级!$B$3/[1]升级!$D$1*CHOOSE(H12,J$3,K$3,L$3,M$3)^0.5,0) -> 157 | R12: =ROUND(L12*[1]升级!$D$3,0) -> 100 | S12: =ROUND(CHOOSE(H12,J$3,K$3,L$3,M$3)^0.5*M12*[1]升级!$B$3/[1]升级!$D$1,0) -> 157 | T12: 81 | U12: 103.5 | V12: 78.26086957 | W12: 0 | X12: 100;100;100;100;100 | Y12: 9091;-1;-1;9091;-1;-1;9092;9091;-1;-1 | Z12: 1;40;30;70;60;-1;-1;-1;1;10 | AA12: -1;-1;-1;-1 | AB12: 1;20;50;80 | AE12: 9091 | AF12: -1 | AG12: -1 | AH12: 9091 | AI12: -1 | AJ12: -1 | AK12: 9092 | AL12: 9091 | AM12: -1 | AN12: -1 | AP12: 1 | AQ12: 40 | AR12: 30 | AS12: 70 | AT12: 60 | AU12: -1 | AV12: -1 | AW12: -1 | AX12: 1 | AY12: 10 | BA12: -1 | BB12: -1 | BC12: -1 | BD12: -1 | BF12: 1 | BG12: 20 | BH12: 50 | BI12: 80 | BK12: 100 | BL12: 100 | BM12: 100 | BN12: 100 | BO12: 100
A13: 1007 | B13: -1 | C13: 4 | D13: 灵狐 | E13: icon_tx1007 | F13: gw_huli | G13: 0 | H13: 2 | J13: 1.25 | L13: 1 | M13: 0.8 | N13: 0.8 | P13: =ROUND(J13*[1]升级!$C$3*CHOOSE(H13,J$3,K$3,L$3,M$3)^0.5,0) -> 225 | Q13: =ROUND(N13*[1]升级!$B$3/[1]升级!$D$1*CHOOSE(H13,J$3,K$3,L$3,M$3)^0.5,0) -> 145 | R13: =ROUND(L13*[1]升级!$D$3,0) -> 100 | S13: =ROUND(CHOOSE(H13,J$3,K$3,L$3,M$3)^0.5*M13*[1]升级!$B$3/[1]升级!$D$1,0) -> 145 | T13: 81 | U13: 112.5 | V13: 72 | W13: 0 | X13: 100;100;100;100;100 | Y13: 9101;-1;-1;9101;-1;9102;-1;9101;-1;-1 | Z13: 1;40;30;70;60;-1;-1;-1;1;10 | AA13: -1;-1;-1;-1 | AB13: 1;20;50;80 | AE13: 9101 | AF13: -1 | AG13: -1 | AH13: 9101 | AI13: -1 | AJ13: 9102 | AK13: -1 | AL13: 9101 | AM13: -1 | AN13: -1 | AP13: 1 | AQ13: 40 | AR13: 30 | AS13: 70 | AT13: 60 | AU13: -1 | AV13: -1 | AW13: -1 | AX13: 1 | AY13: 10 | BA13: -1 | BB13: -1 | BC13: -1 | BD13: -1 | BF13: 1 | BG13: 20 | BH13: 50 | BI13: 80 | BK13: 100 | BL13: 100 | BM13: 100 | BN13: 100 | BO13: 100
A14: 1008 | B14: -1 | C14: 4 | D14: 蜘蛛 | E14: icon_tx1008 | F14: Gw_zhizhu | G14: 0 | H14: 2 | J14: 1.05 | L14: 1 | M14: 0.9523809524 | N14: 0.9523809524 | P14: =ROUND(J14*[1]升级!$C$3*CHOOSE(H14,J$3,K$3,L$3,M$3)^0.5,0) -> 189 | Q14: =ROUND(N14*[1]升级!$B$3/[1]升级!$D$1*CHOOSE(H14,J$3,K$3,L$3,M$3)^0.5,0) -> 172 | R14: =ROUND(L14*[1]升级!$D$3,0) -> 100 | S14: =ROUND(CHOOSE(H14,J$3,K$3,L$3,M$3)^0.5*M14*[1]升级!$B$3/[1]升级!$D$1,0) -> 172 | T14: 81 | U14: 94.5 | V14: 85.71428571 | W14: 0 | X14: 100;100;100;100;100 | Y14: 9031;-1;-1;9033;-1;-1;-1;9032;-1;-1 | Z14: 1;40;30;70;60;-1;-1;-1;1;10 | AA14: -1;-1;-1;-1 | AB14: 1;20;50;80 | AE14: 9031 | AF14: -1 | AG14: -1 | AH14: 9033 | AI14: -1 | AJ14: -1 | AK14: -1 | AL14: 9032 | AM14: -1 | AN14: -1 | AP14: 1 | AQ14: 40 | AR14: 30 | AS14: 70 | AT14: 60 | AU14: -1 | AV14: -1 | AW14: -1 | AX14: 1 | AY14: 10 | BA14: -1 | BB14: -1 | BC14: -1 | BD14: -1 | BF14: 1 | BG14: 20 | BH14: 50 | BI14: 80 | BK14: 100 | BL14: 100 | BM14: 100 | BN14: 100 | BO14: 100
D15: 5001精英怪
A16: 5001 | B16: -1 | C16: 4 | D16: 金系怪 | E16: =CONCATENATE("icon_tx",A16) -> icon_tx5001 | F16: Nanzhu | G16: 0 | H16: 3 | J16: 1.1 | L16: 1 | M16: =((CHOOSE(H16,J$3,K$3,L$3,M$3)^0.5*100/(U16*L16)*1.3)-N16)/0.3 -> 0.9090909091 | N16: =(100/(U16*L16)*1.3/(1+IF(K16="",0.3,K16)))*CHOOSE(H16,J$3,K$3,L$3,M$3)^0.5 -> 0.9090909091 | P16: =ROUND(J16*[1]升级!$C$3*CHOOSE(H16,J$3,K$3,L$3,M$3)^0.5,0) -> 264 | Q16: =ROUND(N16*[1]升级!$B$3/[1]升级!$D$1*CHOOSE(H16,J$3,K$3,L$3,M$3)^0.5,0) -> 219 | R16: =ROUND(L16*[1]升级!$D$3,0) -> 100 | S16: =ROUND(CHOOSE(H16,J$3,K$3,L$3,M$3)^0.5*M16*[1]升级!$B$3/[1]升级!$D$1,0) -> 219 | T16: =(U16*V16)/100 -> 144 | U16: =J16*100*CHOOSE(H16,J$3,K$3,L$3,M$3)^0.5 -> 132 | V16: =(N16+M16*0.3)/1.3*L16*100*CHOOSE(H16,J$3,K$3,L$3,M$3)^0.5 -> 109.0909091 | W16: 0 | X16: =_xlfn.TEXTJOIN(";",1,BK16:BO16) -> 100;100;100;100;100 | Y16: =_xlfn.TEXTJOIN(";",1,AE16:AN16) -> -1;-1;1105;-1;1104;-1;1101;-1;1103;-1 | Z16: =_xlfn.TEXTJOIN(";",1,AP16:AY16) -> 1;40;30;70;60;-1;-1;-1;1;10 | AA16: =_xlfn.TEXTJOIN(";",1,BA16:BD16) -> 3102;3101;-1;-1 | AB16: =_xlfn.TEXTJOIN(";",1,BF16:BI16) -> 1;20;50;80 | AE16: -1 | AF16: -1 | AG16: 1105 | AH16: -1 | AI16: 1104 | AJ16: -1 | AK16: 1101 | AL16: -1 | AM16: 1103 | AN16: -1 | AP16: 1 | AQ16: 40 | AR16: 30 | AS16: 70 | AT16: 60 | AU16: -1 | AV16: -1 | AW16: -1 | AX16: 1 | AY16: 10 | BA16: 3102 | BB16: 3101 | BC16: -1 | BD16: -1 | BF16: 1 | BG16: 20 | BH16: 50 | BI16: 80 | BK16: 100 | BL16: 100 | BM16: 100 | BN16: 100 | BO16: 100
A17: 5002 | B17: -1 | C17: 4 | D17: 水系怪 | E17: icon_tx5002 | F17: Nanzhu | G17: 0 | H17: 3 | J17: 0.9 | L17: 1 | M17: =((CHOOSE(H17,J$3,K$3,L$3,M$3)^0.5*100/(U17*L17)*1.3)-N17)/0.3 -> 1.111111111 | N17: =(100/(U17*L17)*1.3/(1+IF(K17="",0.3,K17)))*CHOOSE(H17,J$3,K$3,L$3,M$3)^0.5 -> 1.111111111 | P17: =ROUND(J17*[1]升级!$C$3*CHOOSE(H17,J$3,K$3,L$3,M$3)^0.5,0) -> 216 | Q17: =ROUND(N17*[1]升级!$B$3/[1]升级!$D$1*CHOOSE(H17,J$3,K$3,L$3,M$3)^0.5,0) -> 268 | R17: =ROUND(L17*[1]升级!$D$3,0) -> 100 | S17: =ROUND(CHOOSE(H17,J$3,K$3,L$3,M$3)^0.5*M17*[1]升级!$B$3/[1]升级!$D$1,0) -> 268 | T17: =(U17*V17)/100 -> 144 | U17: =J17*100*CHOOSE(H17,J$3,K$3,L$3,M$3)^0.5 -> 108 | V17: =(N17+M17*0.3)/1.3*L17*100*CHOOSE(H17,J$3,K$3,L$3,M$3)^0.5 -> 133.3333333 | W17: 0 | X17: 100;100;100;100;100 | Y17: 1201;-1;-1;-1;1205;-1;1204;-1;1202;2003 | Z17: 1;40;30;70;60;-1;-1;-1;1;10 | AA17: 3203;3202;-1;-1 | AB17: 1;20;50;80 | AE17: 1201 | AF17: -1 | AG17: -1 | AH17: -1 | AI17: 1205 | AJ17: -1 | AK17: 1204 | AL17: -1 | AM17: 1202 | AN17: 2003 | AP17: 1 | AQ17: 40 | AR17: 30 | AS17: 70 | AT17: 60 | AU17: -1 | AV17: -1 | AW17: -1 | AX17: 1 | AY17: 10 | BA17: 3203 | BB17: 3202 | BC17: -1 | BD17: -1 | BF17: 1 | BG17: 20 | BH17: 50 | BI17: 80 | BK17: 100 | BL17: 100 | BM17: 100 | BN17: 100 | BO17: 100
A18: 5003 | B18: -1 | C18: 4 | D18: 木系怪 | E18: icon_tx5003 | F18: Nanzhu | G18: 0 | H18: 3 | J18: 1 | L18: 1 | M18: 1 | N18: 1 | P18: =ROUND(J18*[1]升级!$C$3*CHOOSE(H18,J$3,K$3,L$3,M$3)^0.5,0) -> 240 | Q18: =ROUND(N18*[1]升级!$B$3/[1]升级!$D$1*CHOOSE(H18,J$3,K$3,L$3,M$3)^0.5,0) -> 241 | R18: =ROUND(L18*[1]升级!$D$3,0) -> 100 | S18: =ROUND(CHOOSE(H18,J$3,K$3,L$3,M$3)^0.5*M18*[1]升级!$B$3/[1]升级!$D$1,0) -> 241 | T18: 144 | U18: 120 | V18: 120 | W18: 0 | X18: 100;100;100;100;100 | Y18: -1;1301;-1;-1;1305;-1;1304;-1;-1;1302 | Z18: 1;40;30;70;60;-1;-1;-1;1;10 | AA18: 3301;3302;-1;-1 | AB18: 1;20;50;80 | AE18: -1 | AF18: 1301 | AG18: -1 | AH18: -1 | AI18: 1305 | AJ18: -1 | AK18: 1304 | AL18: -1 | AM18: -1 | AN18: 1302 | AP18: 1 | AQ18: 40 | AR18: 30 | AS18: 70 | AT18: 60 | AU18: -1 | AV18: -1 | AW18: -1 | AX18: 1 | AY18: 10 | BA18: 3301 | BB18: 3302 | BC18: -1 | BD18: -1 | BF18: 1 | BG18: 20 | BH18: 50 | BI18: 80 | BK18: 100 | BL18: 100 | BM18: 100 | BN18: 100 | BO18: 100
A19: 5004 | B19: -1 | C19: 4 | D19: 火系怪 | E19: icon_tx5004 | F19: Nanzhu | G19: 0 | H19: 3 | J19: 1.2 | L19: 1 | M19: 0.8333333333 | N19: 0.8333333333 | P19: =ROUND(J19*[1]升级!$C$3*CHOOSE(H19,J$3,K$3,L$3,M$3)^0.5,0) -> 288 | Q19: =ROUND(N19*[1]升级!$B$3/[1]升级!$D$1*CHOOSE(H19,J$3,K$3,L$3,M$3)^0.5,0) -> 201 | R19: =ROUND(L19*[1]升级!$D$3,0) -> 100 | S19: =ROUND(CHOOSE(H19,J$3,K$3,L$3,M$3)^0.5*M19*[1]升级!$B$3/[1]升级!$D$1,0) -> 201 | T19: 144 | U19: 144 | V19: 100 | W19: 0 | X19: 100;100;100;100;100 | Y19: -1;1404;-1;1401;-1;-1;2005;1402;-1;1403 | Z19: 1;40;30;70;60;-1;-1;-1;1;10 | AA19: 3301;3302;-1;-1 | AB19: 1;20;50;80 | AE19: -1 | AF19: 1404 | AG19: -1 | AH19: 1401 | AI19: -1 | AJ19: -1 | AK19: 2005 | AL19: 1402 | AM19: -1 | AN19: 1403 | AP19: 1 | AQ19: 40 | AR19: 30 | AS19: 70 | AT19: 60 | AU19: -1 | AV19: -1 | AW19: -1 | AX19: 1 | AY19: 10 | BA19: 3301 | BB19: 3302 | BC19: -1 | BD19: -1 | BF19: 1 | BG19: 20 | BH19: 50 | BI19: 80 | BK19: 100 | BL19: 100 | BM19: 100 | BN19: 100 | BO19: 100
A20: 5005 | B20: -1 | C20: 4 | D20: 土系怪 | E20: icon_tx5005 | F20: Nanzhu | G20: 0 | H20: 3 | J20: 0.8 | L20: 1 | M20: 1.25 | N20: 1.25 | P20: =ROUND(J20*[1]升级!$C$3*CHOOSE(H20,J$3,K$3,L$3,M$3)^0.5,0) -> 192 | Q20: =ROUND(N20*[1]升级!$B$3/[1]升级!$D$1*CHOOSE(H20,J$3,K$3,L$3,M$3)^0.5,0) -> 302 | R20: =ROUND(L20*[1]升级!$D$3,0) -> 100 | S20: =ROUND(CHOOSE(H20,J$3,K$3,L$3,M$3)^0.5*M20*[1]升级!$B$3/[1]升级!$D$1,0) -> 302 | T20: 144 | U20: 96 | V20: 150 | W20: 0 | X20: 100;100;100;100;100 | Y20: -1;1501;-1;1502;-1;-1;2005;1504;-1;1505 | Z20: 1;40;30;70;60;-1;-1;-1;1;10 | AA20: 3501;3203;-1;-1 | AB20: 1;20;50;80 | AE20: -1 | AF20: 1501 | AG20: -1 | AH20: 1502 | AI20: -1 | AJ20: -1 | AK20: 2005 | AL20: 1504 | AM20: -1 | AN20: 1505 | AP20: 1 | AQ20: 40 | AR20: 30 | AS20: 70 | AT20: 60 | AU20: -1 | AV20: -1 | AW20: -1 | AX20: 1 | AY20: 10 | BA20: 3501 | BB20: 3203 | BC20: -1 | BD20: -1 | BF20: 1 | BG20: 20 | BH20: 50 | BI20: 80 | BK20: 100 | BL20: 100 | BM20: 100 | BN20: 100 | BO20: 100
A21: 5006 | B21: -1 | C21: 4 | D21: 鼠先锋 | E21: icon_tx5006 | F21: Boss_ShuGuai | G21: 0 | H21: 3 | J21: 1.15 | L21: 1 | M21: 0.8695652174 | N21: 0.8695652174 | P21: =ROUND(J21*[1]升级!$C$3*CHOOSE(H21,J$3,K$3,L$3,M$3)^0.5,0) -> 276 | Q21: =ROUND(N21*[1]升级!$B$3/[1]升级!$D$1*CHOOSE(H21,J$3,K$3,L$3,M$3)^0.5,0) -> 210 | R21: =ROUND(L21*[1]升级!$D$3,0) -> 100 | S21: =ROUND(CHOOSE(H21,J$3,K$3,L$3,M$3)^0.5*M21*[1]升级!$B$3/[1]升级!$D$1,0) -> 210 | T21: 144 | U21: 138 | V21: 104.3478261 | W21: 0 | X21: 100;100;100;100;100 | Y21: -1;9041;-1;9042;-1;-1;9043;-1;-1;9044 | Z21: 1;40;30;70;60;-1;-1;-1;1;10 | AA21: -1;-1;-1;-1 | AB21: 1;20;50;80 | AE21: -1 | AF21: 9041 | AG21: -1 | AH21: 9042 | AI21: -1 | AJ21: -1 | AK21: 9043 | AL21: -1 | AM21: -1 | AN21: 9044 | AP21: 1 | AQ21: 40 | AR21: 30 | AS21: 70 | AT21: 60 | AU21: -1 | AV21: -1 | AW21: -1 | AX21: 1 | AY21: 10 | BA21: -1 | BB21: -1 | BC21: -1 | BD21: -1 | BF21: 1 | BG21: 20 | BH21: 50 | BI21: 80 | BK21: 100 | BL21: 100 | BM21: 100 | BN21: 100 | BO21: 100
A22: 5007 | B22: -1 | C22: 4 | D22: 穷奇 | E22: icon_tx5007 | F22: Boss_QiongQi | G22: 0 | H22: 3 | J22: 1.25 | L22: 1 | M22: 0.8 | N22: 0.8 | P22: =ROUND(J22*[1]升级!$C$3*CHOOSE(H22,J$3,K$3,L$3,M$3)^0.5,0) -> 300 | Q22: =ROUND(N22*[1]升级!$B$3/[1]升级!$D$1*CHOOSE(H22,J$3,K$3,L$3,M$3)^0.5,0) -> 193 | R22: =ROUND(L22*[1]升级!$D$3,0) -> 100 | S22: =ROUND(CHOOSE(H22,J$3,K$3,L$3,M$3)^0.5*M22*[1]升级!$B$3/[1]升级!$D$1,0) -> 193 | T22: 144 | U22: 150 | V22: 96 | W22: 0 | X22: 100;100;100;100;100 | Y22: -1;9051;-1;9052;-1;-1;9053;-1;-1;9054 | Z22: 1;40;30;70;60;-1;-1;-1;1;10 | AA22: -1;-1;-1;-1 | AB22: 1;20;50;80 | AE22: -1 | AF22: 9051 | AG22: -1 | AH22: 9052 | AI22: -1 | AJ22: -1 | AK22: 9053 | AL22: -1 | AM22: -1 | AN22: 9054 | AP22: 1 | AQ22: 40 | AR22: 30 | AS22: 70 | AT22: 60 | AU22: -1 | AV22: -1 | AW22: -1 | AX22: 1 | AY22: 10 | BA22: -1 | BB22: -1 | BC22: -1 | BD22: -1 | BF22: 1 | BG22: 20 | BH22: 50 | BI22: 80 | BK22: 100 | BL22: 100 | BM22: 100 | BN22: 100 | BO22: 100
D23: boss怪
A24: 9001 | B24: -1 | C24: 5 | D24: boss | E24: =CONCATENATE("icon_tx",A24) -> icon_tx9001 | F24: Boss01 | G24: 0 | H24: 4 | J24: 1 | L24: 1 | M24: =((CHOOSE(H24,J$3,K$3,L$3,M$3)^0.5*100/(U24*L24)*1.3)-N24)/0.3 -> 1 | N24: =(100/(U24*L24)*1.3/(1+IF(K24="",0.3,K24)))*CHOOSE(H24,J$3,K$3,L$3,M$3)^0.5 -> 1 | P24: =ROUND(J24*[1]升级!$C$3*CHOOSE(H24,J$3,K$3,L$3,M$3)^0.5,0) -> 300 | Q24: =ROUND(N24*[1]升级!$B$3/[1]升级!$D$1*CHOOSE(H24,J$3,K$3,L$3,M$3)^0.5,0) -> 302 | R24: =ROUND(L24*[1]升级!$D$3,0) -> 100 | S24: =ROUND(CHOOSE(H24,J$3,K$3,L$3,M$3)^0.5*M24*[1]升级!$B$3/[1]升级!$D$1,0) -> 302 | T24: =(U24*V24)/100 -> 225 | U24: =J24*100*CHOOSE(H24,J$3,K$3,L$3,M$3)^0.5 -> 150 | V24: =(N24+M24*0.3)/1.3*L24*100*CHOOSE(H24,J$3,K$3,L$3,M$3)^0.5 -> 150 | W24: 0 | X24: =_xlfn.TEXTJOIN(";",1,BK24:BO24) -> 100;100;100;100;100 | Y24: =_xlfn.TEXTJOIN(";",1,AE24:AN24) -> 9003;-1;9005;-1;9005;-1;9004;-1;9001;9002 | Z24: =_xlfn.TEXTJOIN(";",1,AP24:AY24) -> 1;1;1;-1;-1;-1;-1;-1;1;1 | AA24: =_xlfn.TEXTJOIN(";",1,BA24:BD24) -> 10001;-1;10006;-1 | AB24: =_xlfn.TEXTJOIN(";",1,BF24:BI24) -> 1;-1;1;-1 | AE24: 9003 | AF24: -1 | AG24: 9005 | AH24: -1 | AI24: 9005 | AJ24: -1 | AK24: 9004 | AL24: -1 | AM24: 9001 | AN24: 9002 | AP24: 1 | AQ24: 1 | AR24: 1 | AS24: -1 | AT24: -1 | AU24: -1 | AV24: -1 | AW24: -1 | AX24: 1 | AY24: 1 | BA24: 10001 | BB24: -1 | BC24: 10006 | BD24: -1 | BF24: 1 | BG24: -1 | BH24: 1 | BI24: -1 | BK24: 100 | BL24: 100 | BM24: 100 | BN24: 100 | BO24: 100
A25: 9002 | B25: -1 | C25: 5 | D25: 凤凰 | E25: icon_tx9002 | F25: Boss_fenghuang | G25: 0 | H25: 4 | J25: 1 | L25: 1 | M25: =((CHOOSE(H25,J$3,K$3,L$3,M$3)^0.5*100/(U25*L25)*1.3)-N25)/0.3 -> 1 | N25: =(100/(U25*L25)*1.3/(1+IF(K25="",0.3,K25)))*CHOOSE(H25,J$3,K$3,L$3,M$3)^0.5 -> 1 | P25: =ROUND(J25*[1]升级!$C$3*CHOOSE(H25,J$3,K$3,L$3,M$3)^0.5,0) -> 300 | Q25: =ROUND(N25*[1]升级!$B$3/[1]升级!$D$1*CHOOSE(H25,J$3,K$3,L$3,M$3)^0.5,0) -> 302 | R25: =ROUND(L25*[1]升级!$D$3,0) -> 100 | S25: =ROUND(CHOOSE(H25,J$3,K$3,L$3,M$3)^0.5*M25*[1]升级!$B$3/[1]升级!$D$1,0) -> 302 | T25: =(U25*V25)/100 -> 225 | U25: =J25*100*CHOOSE(H25,J$3,K$3,L$3,M$3)^0.5 -> 150 | V25: =(N25+M25*0.3)/1.3*L25*100*CHOOSE(H25,J$3,K$3,L$3,M$3)^0.5 -> 150 | W25: 0 | X25: 100;100;100;100;100 | Y25: 9011;-1;9013;9014;-1;9012;-1;-1;9015;9015 | Z25: 1;1;1;-1;-1;-1;-1;-1;1;1 | AA25: -1;-1;-1;-1 | AB25: 1;-1;1;-1 | AE25: 9011 | AF25: -1 | AG25: 9013 | AH25: 9014 | AI25: -1 | AJ25: 9012 | AK25: -1 | AL25: -1 | AM25: 9015 | AN25: 9015 | AP25: 1 | AQ25: 1 | AR25: 1 | AS25: -1 | AT25: -1 | AU25: -1 | AV25: -1 | AW25: -1 | AX25: 1 | AY25: 1 | BA25: -1 | BB25: -1 | BC25: -1 | BD25: -1 | BF25: 1 | BG25: -1 | BH25: 1 | BI25: -1 | BK25: 100 | BL25: 100 | BM25: 100 | BN25: 100 | BO25: 100
A26: 9003 | B26: -1 | C26: 5 | D26: 北海神龟 | E26: icon_tx9003 | F26: Boss_BeiHaiGui | G26: 0 | H26: 4 | J26: 1 | L26: 1 | M26: 1 | N26: 1 | P26: =ROUND(J26*[1]升级!$C$3*CHOOSE(H26,J$3,K$3,L$3,M$3)^0.5,0) -> 300 | Q26: =ROUND(N26*[1]升级!$B$3/[1]升级!$D$1*CHOOSE(H26,J$3,K$3,L$3,M$3)^0.5,0) -> 302 | R26: =ROUND(L26*[1]升级!$D$3,0) -> 100 | S26: =ROUND(CHOOSE(H26,J$3,K$3,L$3,M$3)^0.5*M26*[1]升级!$B$3/[1]升级!$D$1,0) -> 302 | T26: 225 | U26: 150 | V26: 150 | W26: 0 | X26: 100;100;100;100;100 | Y26: 9021;-1;-1;9022;9023;-1;-1;-1;9024;9023 | Z26: 1;1;1;-1;-1;-1;-1;-1;1;1 | AA26: -1;-1;-1;-1 | AB26: 1;-1;1;-1 | AE26: 9021 | AF26: -1 | AG26: -1 | AH26: 9022 | AI26: 9023 | AJ26: -1 | AK26: -1 | AL26: -1 | AM26: 9024 | AN26: 9023 | AP26: 1 | AQ26: 1 | AR26: 1 | AS26: -1 | AT26: -1 | AU26: -1 | AV26: -1 | AW26: -1 | AX26: 1 | AY26: 1 | BA26: -1 | BB26: -1 | BC26: -1 | BD26: -1 | BF26: 1 | BG26: -1 | BH26: 1 | BI26: -1 | BK26: 100 | BL26: 100 | BM26: 100 | BN26: 100 | BO26: 100
A27: 9004 | B27: -1 | C27: 5 | D27: 樗木之灵 | E27: icon_tx9004 | F27: Boss_Tree | G27: 0 | H27: 4 | J27: 1 | L27: 1 | M27: 1 | N27: 1 | P27: =ROUND(J27*[1]升级!$C$3*CHOOSE(H27,J$3,K$3,L$3,M$3)^0.5,0) -> 300 | Q27: =ROUND(N27*[1]升级!$B$3/[1]升级!$D$1*CHOOSE(H27,J$3,K$3,L$3,M$3)^0.5,0) -> 302 | R27: =ROUND(L27*[1]升级!$D$3,0) -> 100 | S27: =ROUND(CHOOSE(H27,J$3,K$3,L$3,M$3)^0.5*M27*[1]升级!$B$3/[1]升级!$D$1,0) -> 302 | T27: 225 | U27: 150 | V27: 150 | W27: 0 | X27: 100;100;100;100;100 | Y27: -1;9061;9063;9064;9062;9063;-1;-1;-1;9063 | Z27: 1;1;1;-1;-1;-1;-1;-1;1;1 | AA27: -1;-1;-1;-1 | AB27: 1;-1;1;-1 | AE27: -1 | AF27: 9061 | AG27: 9063 | AH27: 9064 | AI27: 9062 | AJ27: 9063 | AK27: -1 | AL27: -1 | AM27: -1 | AN27: 9063 | AP27: 1 | AQ27: 1 | AR27: 1 | AS27: -1 | AT27: -1 | AU27: -1 | AV27: -1 | AW27: -1 | AX27: 1 | AY27: 1 | BA27: -1 | BB27: -1 | BC27: -1 | BD27: -1 | BF27: 1 | BG27: -1 | BH27: 1 | BI27: -1 | BK27: 100 | BL27: 100 | BM27: 100 | BN27: 100 | BO27: 100
A28: 9005 | B28: -1 | C28: 5 | D28: 心魔 | E28: icon_tx9005 | F28: Boss_fenghuang | G28: 0 | H28: 4 | J28: 1 | L28: 1 | M28: 1 | N28: 1 | P28: =ROUND(J28*[1]升级!$C$3*CHOOSE(H28,J$3,K$3,L$3,M$3)^0.5,0) -> 300 | Q28: =ROUND(N28*[1]升级!$B$3/[1]升级!$D$1*CHOOSE(H28,J$3,K$3,L$3,M$3)^0.5,0) -> 302 | R28: =ROUND(L28*[1]升级!$D$3,0) -> 100 | S28: =ROUND(CHOOSE(H28,J$3,K$3,L$3,M$3)^0.5*M28*[1]升级!$B$3/[1]升级!$D$1,0) -> 302 | T28: 225 | U28: 150 | V28: 150 | W28: 0 | X28: 100;100;100;100;100 | Y28: -1;9061;-1;9064;9062;9063;-1;-1;-1;9063 | Z28: 1;1;1;-1;-1;-1;-1;-1;1;1 | AA28: -1;-1;-1;-1 | AB28: 1;-1;1;-1 | AE28: -1 | AF28: 9061 | AG28: -1 | AH28: 9064 | AI28: 9062 | AJ28: 9063 | AK28: -1 | AL28: -1 | AM28: -1 | AN28: 9063 | AP28: 1 | AQ28: 1 | AR28: 1 | AS28: -1 | AT28: -1 | AU28: -1 | AV28: -1 | AW28: -1 | AX28: 1 | AY28: 1 | BA28: -1 | BB28: -1 | BC28: -1 | BD28: -1 | BF28: 1 | BG28: -1 | BH28: 1 | BI28: -1 | BK28: 100 | BL28: 100 | BM28: 100 | BN28: 100 | BO28: 100
A29: 9006 | B29: -1 | C29: 5 | D29: 仙山飞鸟 | E29: icon_tx9006 | F29: Boss_fenghuang | G29: 0 | H29: 4 | J29: 1 | L29: 1 | M29: 1 | N29: 1 | P29: =ROUND(J29*[1]升级!$C$3*CHOOSE(H29,J$3,K$3,L$3,M$3)^0.5,0) -> 300 | Q29: =ROUND(N29*[1]升级!$B$3/[1]升级!$D$1*CHOOSE(H29,J$3,K$3,L$3,M$3)^0.5,0) -> 302 | R29: =ROUND(L29*[1]升级!$D$3,0) -> 100 | S29: =ROUND(CHOOSE(H29,J$3,K$3,L$3,M$3)^0.5*M29*[1]升级!$B$3/[1]升级!$D$1,0) -> 302 | T29: 225 | U29: 150 | V29: 150 | W29: 0 | X29: 100;100;100;100;100 | Y29: -1;9081;-1;9082;9084;9083;-1;9085;-1;9084 | Z29: 1;1;1;-1;-1;-1;-1;-1;1;1 | AA29: -1;-1;-1;-1 | AB29: 1;-1;1;-1 | AE29: -1 | AF29: 9081 | AG29: -1 | AH29: 9082 | AI29: 9084 | AJ29: 9083 | AK29: -1 | AL29: 9085 | AM29: -1 | AN29: 9084 | AP29: 1 | AQ29: 1 | AR29: 1 | AS29: -1 | AT29: -1 | AU29: -1 | AV29: -1 | AW29: -1 | AX29: 1 | AY29: 1 | BA29: -1 | BB29: -1 | BC29: -1 | BD29: -1 | BF29: 1 | BG29: -1 | BH29: 1 | BI29: -1 | BK29: 100 | BL29: 100 | BM29: 100 | BN29: 100 | BO29: 100
AE30: -1 | AF30: -1 | AG30: -1 | AH30: -1 | AI30: -1 | AJ30: -1 | AK30: -1 | AL30: -1 | AM30: -1 | AN30: -1 | AP30: -1 | AQ30: -1 | AR30: -1 | AS30: -1 | AT30: -1 | AU30: -1 | AV30: -1 | AW30: -1 | AX30: -1 | AY30: -1 | BA30: -1 | BB30: -1 | BC30: -1 | BD30: -1 | BF30: -1 | BG30: -1 | BH30: -1 | BI30: -1
AE31: -1 | AF31: -1 | AG31: -1 | AH31: -1 | AI31: -1 | AJ31: -1 | AK31: -1 | AL31: -1 | AM31: -1 | AN31: -1 | AP31: -1 | AQ31: -1 | AR31: -1 | AS31: -1 | AT31: -1 | AU31: -1 | AV31: -1 | AW31: -1 | AX31: -1 | AY31: -1 | BA31: -1 | BB31: -1 | BC31: -1 | BD31: -1 | BF31: -1 | BG31: -1 | BH31: -1 | BI31: -1
AE32: -1 | AF32: -1 | AG32: -1 | AH32: -1 | AI32: -1 | AJ32: -1 | AK32: -1 | AL32: -1 | AM32: -1 | AN32: -1 | AP32: -1 | AQ32: -1 | AR32: -1 | AS32: -1 | AT32: -1 | AU32: -1 | AV32: -1 | AW32: -1 | AX32: -1 | AY32: -1 | BA32: -1 | BB32: -1 | BC32: -1 | BD32: -1 | BF32: -1 | BG32: -1 | BH32: -1 | BI32: -1
AE33: -1 | AF33: -1 | AG33: -1 | AH33: -1 | AI33: -1 | AJ33: -1 | AK33: -1 | AL33: -1 | AM33: -1 | AN33: -1 | AP33: -1 | AQ33: -1 | AR33: -1 | AS33: -1 | AT33: -1 | AU33: -1 | AV33: -1 | AW33: -1 | AX33: -1 | AY33: -1 | BA33: -1 | BB33: -1 | BC33: -1 | BD33: -1 | BF33: -1 | BG33: -1 | BH33: -1 | BI33: -1
